fUSD/lending_fUSD_20250818
["ID","MTS","AMOUNT","RATE_DAILY","PERIOD"]
[380082573,1755531622358,-400.0,0.00030958,120]
[380082574,1755531622411,-400.0,0.00030958,120]
[380082575,1755531622458,-400.0,0.00030958,120]
[380082576,1755531622504,-400.0,0.00030958,120]
[380082577,1755531622553,-400.0,0.00030958,120]
[380082578,1755531622598,-174.17037026,0.00030958,120]
[380082579,1755531622645,-400.0,0.00030958,120]
[380082580,1755531622694,-400.0,0.00030958,120]
[380082581,1755531622740,-400.0,0.00030958,120]
[380082582,1755531622786,-989.16,0.00030958,120]
[380082583,1755531622833,-400.0,0.00030958,120]
[380082584,1755531622879,-400.0,0.00030958,120]
[380082585,1755531622934,-400.0,0.00030958,120]
[380082586,1755531622990,-743.68,0.00030958,120]
[380082587,1755531623038,-1495.96,0.00030958,120]
[380082588,1755531623085,-400.0,0.00030958,120]
[380082589,1755531623131,-561.03,0.00030958,120]
[380082590,1755531623179,-913.61,0.00030958,120]
[380082591,1755531623231,-400.0,0.00030958,120]
[380082592,1755531623282,-400.0,0.00030958,120]
[380082593,1755531623337,-400.0,0.00030958,120]
[380082594,1755531623389,-413.38,0.00030958,120]
[380082595,1755531623439,-1303.3,0.00030958,120]
[380082596,1755531623494,-400.0,0.00030958,120]
[380082597,1755531623545,-400.0,0.00030958,120]
[380082598,1755531623597,-400.0,0.00030958,120]
[380082599,1755531623648,-210.88622733,0.00030958,120]
[380082600,1755531623700,-400.0,0.00030958,120]
[380082601,1755531623749,-1476.96,0.00030958,120]
[380082602,1755531623799,-400.0,0.00030958,120]
[380082603,1755531623848,-474.09,0.00030958,120]
[380082604,1755531623901,-506.37,0.00030958,120]
[380082605,1755531623952,-1084.99,0.00030958,120]
[380082606,1755531624003,-400.0,0.00030958,120]
[380082607,1755531624053,-534.94,0.00030958,120]
[380082608,1755531624102,-400.0,0.00030958,120]
[380082609,1755531624152,-400.0,0.00030958,120]
[380082610,1755531624202,-1791.81,0.00030958,120]
[380082611,1755531624252,-400.0,0.00030958,120]
[380082612,1755531624310,-173.84460225,0.00030958,120]
[380082613,1755531624361,-400.0,0.00030958,120]
[380082614,1755531624411,-1670.51,0.00030958,120]
[380082615,1755531624462,-1102.14,0.00030958,120]
[380082616,1755531624513,-687.69,0.00030958,120]
[380082617,1755531624566,-400.0,0.00030958,120]
[380082618,1755531624616,-3372.1,0.00030958,120]
[380082619,1755531624666,-400.0,0.00030958,120]
[380082620,1755531624717,-1884.34,0.00030958,120]
[380082621,1755531624769,-669.38,0.00030958,120]
[380082622,1755531624824,-400.0,0.00030958,120]
[380082623,1755531624877,-400.0,0.00030958,120]
[380082624,1755531624930,-400.0,0.00030958,120]
[380082625,1755531624988,-976.71,0.00030958,120]
[380082626,1755531625041,-400.0,0.00030958,120]
[380082627,1755531625094,-400.0,0.00030958,120]
[380082628,1755531625145,-400.0,0.00030958,120]
[380082629,1755531625195,-740.2,0.00030958,60]
[380082630,1755531625250,-945.45,0.00030958,120]
[380082631,1755531625303,-400.0,0.00030958,120]
[380082632,1755531625356,-4022.61,0.00030958,120]
[380082633,1755531625407,-400.0,0.00030958,120]
[380082634,1755531625460,-1051.15,0.00030958,120]
[380082635,1755531625514,-854.45,0.00030958,120]
[380082636,1755531625564,-400.0,0.00030958,120]
[380082637,1755531625615,-400.0,0.00030958,120]
[380082638,1755531625663,-843.31,0.00030958,120]
[380082639,1755531625712,-2471.99,0.00030958,120]
[380082640,1755531625761,-2738.93,0.00030958,120]
[380082641,1755531625810,-400.0,0.00030958,120]
[380082642,1755531625858,-681.47,0.00030958,120]
[380082643,1755531625907,-400.0,0.00030958,120]
[380082644,1755531625957,-400.0,0.00030958,120]
[380082645,1755531626007,-400.0,0.00030958,120]
[380082646,1755531626098,-400.0,0.00030958,120]
[380082647,1755531626187,-3010.51,0.00030958,120]
[380082648,1755531626241,-503.52,0.00030958,120]
[380082649,1755531626296,-525.98109591,0.00030958,120]
[380082650,1755531626348,-1595.04,0.00030958,120]
[380082651,1755531626399,-400.0,0.00030958,120]
[380082652,1755531626457,-400.0,0.00030958,120]
[380082653,1755531626512,-1233.8,0.00030958,120]
[380082654,1755531626565,-580.22,0.00030958,120]
[380082655,1755531626614,-400.0,0.00030958,120]
[380082656,1755531626663,-400.0,0.00030958,120]
[380082657,1755531626711,-400.0,0.00030958,120]
[380082658,1755531626762,-2788.1,0.00030958,120]
[380082659,1755531626812,-1770.77,0.00030958,120]
[380082660,1755531626863,-988.38,0.00030958,120]
[380082661,1755531626923,-1601.67,0.00030958,120]
[380082662,1755531626974,-1220.41,0.00030958,120]
[380082663,1755531627359,-400.0,0.00030958,120]
[380082664,1755531627420,-400.0,0.00030958,120]
[380082665,1755531627468,-1720.59,0.00030958,120]
[380082666,1755531627519,-500.0,0.00030958,60]
[380082667,1755531627571,-400.0,0.00030958,120]
[380082668,1755531627620,-415.48,0.00030958,120]
[380082669,1755531627670,-793.65,0.00030958,120]
[380082670,1755531627720,-221.36324721,0.00030958,60]
[380082671,1755531627769,-500.0,0.00030958,60]
[380082672,1755531627820,-400.0,0.00030958,120]
[380082673,1755531627870,-287.69555435,0.00030958,120]
[380082674,1755531627920,-400.0,0.00030958,120]
[380082675,1755531627969,-500.0,0.00030958,60]
[380082676,1755531628020,-2054.98,0.00030958,120]
[380082677,1755531628070,-615.8,0.00030958,120]
[380082678,1755531628117,-500.0,0.00030958,60]
[380082679,1755531628166,-400.0,0.00030958,120]
[380082680,1755531628215,-400.0,0.00030958,120]
[380082681,1755531628267,-400.0,0.00030958,120]
[380082682,1755531628317,-562.07,0.00030958,120]
[380082683,1755531628370,-400.0,0.00030958,120]
[380082684,1755531628422,-504.80531898,0.00030958,120]
[380082685,1755531628471,-3650.68,0.00030958,120]
[380082686,1755531628529,-400.0,0.00030958,120]
[380082687,1755531628579,-406.12430906,0.00030958,120]
[380082688,1755531628636,-400.0,0.00030958,120]
[380082689,1755531628686,-2186.73,0.00030958,120]
[380082690,1755531628737,-400.0,0.00030958,120]
[380082691,1755531628788,-649.93,0.00030958,120]
[380082692,1755531628837,-859.27,0.00030958,120]
[380082693,1755531628884,-1281.96,0.00030958,120]
[380082694,1755531628934,-841.07,0.00030958,120]
[380082695,1755531628986,-400.0,0.00030958,120]
[380082696,1755531629034,-2567.96,0.00030958,120]
[380082697,1755531629083,-3451.67,0.00030958,120]
[380082698,1755531629132,-400.0,0.00030958,120]
[380082699,1755531629188,-400.0,0.00030958,120]
[380082700,1755531629239,-400.0,0.00030958,120]
[380082701,1755531629291,-659.67,0.00030958,120]
[380082702,1755531629346,-500.0,0.00030958,60]
[380082703,1755531629397,-400.0,0.00030958,120]
[380082704,1755531629447,-500.0,0.00030958,60]
[380082705,1755531629500,-1919.24,0.00030958,120]
[380082706,1755531629553,-401.03830646,0.00030958,120]
[380082707,1755531629604,-400.0,0.00030958,120]
[380082708,1755531629655,-150.0,0.00030958,60]
[380082709,1755531629707,-768.45,0.00030958,120]
[380082710,1755531629767,-400.0,0.00030958,120]
[380082711,1755531629827,-904.33,0.00030958,120]
[380082712,1755531629880,-202.27324428,0.00030958,60]
[380082713,1755531629931,-400.0,0.00030958,120]
[380082714,1755531629983,-400.0,0.00030958,120]
[380082715,1755531630035,-612.34,0.00030958,120]
[380082716,1755531630087,-500.0,0.00030958,60]
[380082717,1755531630138,-435.79,0.00030958,120]
[380082718,1755531630189,-494.54,0.00030958,120]
[380082719,1755531630241,-406.64,0.00030958,120]
[380082720,1755531630293,-4015.71,0.00030958,60]
[380082721,1755531630346,-400.0,0.00030958,120]
[380082722,1755531630398,-400.0,0.00030958,120]
[380082723,1755531630448,-400.0,0.00030958,120]
[380082724,1755531630501,-400.0,0.00030958,120]
[380082725,1755531630552,-400.0,0.00030958,120]
[380082726,1755531630603,-688.76,0.00030958,120]
[380082727,1755531630653,-1996.52,0.00030958,120]
[380082728,1755531630704,-1073.88,0.00030958,120]
[380082729,1755531630754,-400.0,0.00030958,120]
[380082730,1755531630803,-400.0,0.00030958,120]
[380082731,1755531630853,-1006.74,0.00030958,120]
[380082732,1755531630904,-2997.68,0.00030958,120]
[380082733,1755531630958,-400.0,0.00030958,120]
[380082734,1755531631011,-400.0,0.00030958,120]
[380082735,1755531631069,-400.0,0.00030958,120]
[380082736,1755531631129,-1076.8,0.00030958,120]
[380082737,1755531631187,-834.08,0.00030958,120]
[380082738,1755531631241,-964.84,0.00030958,120]
[380082739,1755531631299,-400.0,0.00030958,120]
[380082740,1755531631354,-400.25935108,0.00030958,120]
[380082741,1755531631405,-1252.04,0.00030958,120]
[380082742,1755531631539,-400.0,0.00030958,120]
[380082743,1755531631588,-500.0,0.00030958,60]
[380082744,1755531631643,-473.49,0.00030958,120]
[380082745,1755531631727,-167.75,0.00030958,120]
[380082746,1755531631823,-577.43,0.00030958,120]
[380082747,1755531631871,-870.1,0.00030958,120]
[380082748,1755531631920,-400.0,0.00030958,120]
[380082749,1755531631970,-730.4,0.00030958,120]
[380082750,1755531632019,-400.0,0.00030958,120]
[380082751,1755531632069,-400.0,0.00030958,120]
[380082752,1755531632120,-1470.19,0.00030958,120]
[380082753,1755531632170,-671.51,0.00030958,120]
[380082754,1755531632221,-400.0,0.00030958,120]
[380082755,1755531632272,-400.0,0.00030958,120]
[380082756,1755531632323,-400.0,0.00030958,120]
[380082757,1755531632377,-400.0,0.00030958,120]
[380082758,1755531632427,-2330.81,0.00030958,120]
[380082759,1755531632480,-400.0,0.00030958,120]
[380082760,1755531632532,-704.43,0.00030958,120]
[380082761,1755531632582,-1142.14,0.00030958,120]
[380082762,1755531632632,-400.0,0.00030958,120]
[380082763,1755531632681,-2163.04,0.00030958,120]
[380082764,1755531632731,-705.46,0.00030958,120]
[380082765,1755531632780,-471.82,0.00030958,120]
[380082766,1755531632832,-400.0,0.00030958,120]
[380082767,1755531632881,-1062.35,0.00030958,120]
[380082768,1755531632930,-400.0,0.00030958,120]
[380082769,1755531632978,-400.0,0.00030958,120]
[380082770,1755531633030,-956.27,0.00030958,120]
[380082771,1755531633082,-3649.46,0.00030958,120]
[380082772,1755531633133,-2576.98,0.00030958,120]
[380082773,1755531633184,-2010.89,0.00030958,120]
[380082774,1755531633235,-1158.42,0.00030958,60]
[380082775,1755531633287,-400.0,0.00030958,120]
[380082776,1755531633343,-400.0,0.00030958,120]
[380082777,1755531633399,-585.53,0.00030958,120]
[380082778,1755531633454,-1994.69,0.00030958,120]
[380082779,1755531633509,-1434.92,0.00030958,120]
[380082780,1755531633563,-400.0,0.00030958,120]
[380082781,1755531633615,-916.76,0.00030958,120]
[380082782,1755531633666,-2418.8,0.00030958,120]
[380082783,1755531633717,-471.17,0.00030958,120]
[380082784,1755531633772,-400.0,0.00030958,120]
[380082785,1755531633831,-560.6,0.00030958,120]
[380082786,1755531633893,-918.16,0.00030958,120]
[380082787,1755531633944,-1668.98,0.00030958,120]
[380082788,1755531633994,-519.78,0.00030958,120]
[380082789,1755531634046,-539.87,0.00030958,120]
[380082790,1755531634100,-3130.45,0.00030958,120]
[380082791,1755531634152,-895.63,0.00030958,120]
[380082792,1755531634204,-666.03,0.00030958,120]
[380082793,1755531634259,-533.75,0.00030958,120]
[380082794,1755531634319,-438.94,0.00030958,120]
[380082795,1755531634373,-400.0,0.00030958,120]
[380082796,1755531634428,-400.0,0.00030958,120]
[380082797,1755531634480,-516.51,0.00030958,120]
[380082798,1755531634530,-400.0,0.00030958,120]
[380082799,1755531634581,-443.38,0.00030958,120]
[380082800,1755531634632,-526.74,0.00030958,120]
[380082801,1755531634681,-706.46,0.00030958,120]
[380082802,1755531634733,-3336.03,0.00030958,120]
[380082803,1755531634785,-837.38,0.00030958,120]
[380082804,1755531634836,-202.80861619,0.00030958,120]
[380082805,1755531634887,-1832.53,0.00030958,120]
[380082806,1755531634938,-407.46,0.00030958,120]
[380082807,1755531634990,-400.0,0.00030958,120]
[380082808,1755531635046,-777.9,0.00030958,120]
[380082809,1755531635114,-2909.39,0.00030958,120]
[380082810,1755531635177,-3090.16,0.00030958,120]
[380082811,1755531635231,-400.0,0.00030958,120]
[380082812,1755531635286,-972.28,0.00030958,120]
[380082813,1755531635339,-400.0,0.00030958,120]
[380082814,1755531635392,-479.89,0.00030958,120]
[380082815,1755531635444,-1238.0,0.00030958,120]
[380082816,1755531635495,-400.0,0.00030958,120]
[380082817,1755531635546,-1354.29,0.00030958,120]
[380082818,1755531635597,-976.37,0.00030958,120]
[380082819,1755531635648,-400.0,0.00030958,120]
[380082820,1755531635698,-400.0,0.00030958,120]
[380082821,1755531635752,-1206.51,0.00030958,120]
[380082822,1755531635804,-1034.91,0.00030958,120]
[380082823,1755531635858,-1103.25,0.00030958,120]
[380082824,1755531635913,-400.0,0.00030958,120]
[380082825,1755531635966,-1090.28,0.00030958,120]
[380082826,1755531636017,-839.83,0.00030958,120]
[380082827,1755531636069,-725.04,0.00030958,120]
[380082828,1755531636121,-761.94,0.00030958,120]
[380082829,1755531636175,-400.0,0.00030958,120]
[380082830,1755531636227,-1534.15,0.00030958,120]
[380082831,1755531636279,-579.27,0.00030958,120]
[380082832,1755531636329,-615.92,0.00030958,120]
[380082833,1755531636380,-400.0,0.00030958,120]
[380082834,1755531636433,-3639.38,0.00030958,120]
[380082835,1755531636485,-400.0,0.00030958,120]
[380082836,1755531636545,-2038.58,0.00030958,120]
[380082837,1755531636600,-400.0,0.00030958,120]
[380082838,1755531636654,-2797.24,0.00030958,120]
[380082839,1755531636713,-400.0,0.00030958,120]
[380082840,1755531636767,-400.0,0.00030958,120]
[380082841,1755531636820,-1718.05,0.00030958,120]
[380082842,1755531636872,-502.35,0.00030958,120]
[380082843,1755531636924,-4182.51,0.00030958,120]
[380082844,1755531636976,-400.0,0.00030958,120]
[380082845,1755531637029,-400.0,0.00030958,120]
[380082846,1755531637081,-400.0,0.00030958,120]
[380082847,1755531637132,-1427.56,0.00030958,120]
[380082848,1755531637185,-400.0,0.00030958,120]
[380082849,1755531637238,-619.94,0.00030958,120]
[380082850,1755531637299,-1488.52,0.00030958,120]
[380082851,1755531637376,-400.0,0.00030958,120]
[380082852,1755531637470,-411.17,0.00030958,120]
[380082853,1755531637521,-1735.42,0.00030958,120]
[380082854,1755531637572,-400.0,0.00030958,120]
[380082855,1755531637628,-256.66,0.00030958,120]
[380082856,1755531637680,-1080.28,0.00030958,120]
[380082857,1755531637734,-417.78,0.00030958,120]
[380082858,1755531638077,-400.0,0.00030958,120]
[380082859,1755531638128,-400.0,0.00030958,120]
[380082860,1755531638178,-400.0,0.00030958,120]
[380082861,1755531638228,-450.48,0.00030958,120]
[380082862,1755531638287,-1050.76,0.00030958,120]
[380082863,1755531638337,-919.08,0.00030958,120]
[380082864,1755531638386,-1992.68,0.00030958,120]
[380082865,1755531638436,-400.0,0.00030958,120]
[380082866,1755531638485,-3684.7,0.00030958,120]
[380082867,1755531638538,-3062.51,0.00030958,120]
[380082868,1755531638588,-1715.67,0.00030958,120]
[380082869,1755531638637,-2026.02,0.00030958,120]
[380082870,1755531638687,-6117.57,0.00030958,120]
[380082871,1755531638736,-477.15,0.00030958,120]
[380082872,1755531638786,-1281.34,0.00030958,120]
[380082873,1755531638834,-812.09,0.00030958,120]
[380082874,1755531638885,-400.0,0.00030958,120]
[380082875,1755531638935,-1273.16,0.00030958,120]
[380082876,1755531639000,-556.04,0.00030958,120]
[380082877,1755531639054,-1446.23,0.00030958,120]
[380082878,1755531639108,-400.0,0.00030958,120]
[380082879,1755531639159,-402.03,0.00030958,120]
[380082880,1755531639211,-400.0,0.00030958,120]
[380082881,1755531639263,-701.46,0.00030958,120]
[380082882,1755531639320,-400.0,0.00030958,120]
[380082883,1755531639377,-2995.99,0.00030958,120]
[380082884,1755531639432,-400.0,0.00030958,120]
[380082885,1755531639487,-3898.08,0.00030958,120]
[380082886,1755531639543,-2500.0,0.00030958,120]
[380082887,1755531639596,-463.18,0.00030958,120]
[380082888,1755531639647,-400.0,0.00030958,120]
[380082889,1755531639700,-400.0,0.00030958,120]
[380082890,1755531639756,-400.0,0.00030958,120]
[380082891,1755531639811,-400.0,0.00030958,120]
[380082892,1755531639863,-400.0,0.00030958,120]
[380082893,1755531639916,-969.02,0.00030958,120]
[380082894,1755531639968,-374.66,0.00030958,120]
[380082895,1755531640022,-1379.67,0.00030958,120]
[380082896,1755531640076,-559.7,0.00030958,120]
[380082897,1755531640130,-400.0,0.00030958,120]
[380082898,1755531640185,-1261.68,0.00030958,120]
[380082899,1755531640240,-3406.91,0.00030958,120]
[380082900,1755531640299,-400.0,0.00030958,120]
[380082901,1755531640366,-400.67,0.00030958,120]
[380082902,1755531640424,-400.0,0.00030958,120]
[380082903,1755531640477,-2301.52,0.00030958,120]
[380082904,1755531640531,-673.71,0.00030958,120]
[380082905,1755531640587,-3314.95,0.00030958,120]
[380082906,1755531640642,-400.0,0.00030958,120]
[380082907,1755531640694,-846.84,0.00030958,120]
[380082908,1755531640747,-400.0,0.00030958,120]
[380082909,1755531640797,-400.0,0.00030958,120]
[380082910,1755531640848,-1948.39,0.00030958,120]
[380082911,1755531640899,-4106.01,0.00030958,120]
[380082912,1755531640952,-400.0,0.00030958,120]
[380082913,1755531641005,-1407.02,0.00030958,120]
[380082914,1755531641059,-400.0,0.00030958,120]
[380082915,1755531641110,-400.0,0.00030958,120]
[380082916,1755531641165,-2747.68,0.00030958,120]
[380082917,1755531641217,-400.0,0.00030958,120]
[380082918,1755531641272,-1434.13,0.00030958,120]
[380082919,1755531641325,-400.0,0.00030958,120]
[380082920,1755531641377,-400.0,0.00030958,120]
[380082921,1755531641430,-400.0,0.00030958,120]
[380082922,1755531641483,-400.0,0.00030958,120]
[380082923,1755531641538,-400.0,0.00030958,120]
[380082924,1755531641593,-3700.85,0.00030958,120]
[380082925,1755531641645,-2075.1,0.00030958,120]
[380082926,1755531641697,-400.0,0.00030958,120]
[380082927,1755531641752,-447.89,0.00030958,120]
[380082928,1755531641808,-5032.54,0.00030958,120]
[380082929,1755531641861,-2009.78,0.00030958,120]
[380082930,1755531641913,-400.0,0.00030958,120]
[380082931,1755531641967,-400.0,0.00030958,120]
[380082932,1755531642021,-400.0,0.00030958,120]
[380082933,1755531642075,-1625.31,0.00030958,120]
[380082934,1755531642127,-403.61,0.00030958,120]
[380082935,1755531642182,-1015.35,0.00030958,120]
[380082936,1755531642235,-346.48,0.00030958,120]
[380082937,1755531642286,-878.57,0.00030958,120]
[380082938,1755531642340,-400.0,0.00030958,120]
[380082939,1755531642397,-400.0,0.00030958,120]
[380082940,1755531642449,-400.0,0.00030958,120]
[380082941,1755531642501,-400.0,0.00030958,120]
[380082942,1755531642554,-400.0,0.00030958,120]
[380082943,1755531642606,-3315.79,0.00030958,120]
[380082944,1755531642658,-4030.37,0.00030958,120]
[380082945,1755531642712,-1233.5,0.00030958,120]
[380082946,1755531642763,-705.38,0.00030958,120]
[380082947,1755531642813,-806.02,0.00030958,120]
[380082948,1755531642867,-400.0,0.00030958,120]
[380082949,1755531642922,-444.13,0.00030958,120]
[380082950,1755531643010,-400.0,0.00030958,120]
[380082951,1755531643119,-400.0,0.00030958,120]
[380082952,1755531643556,-2022.84,0.00030958,120]
[380082953,1755531643658,-400.0,0.00030958,120]
[380082954,1755531643707,-2772.44,0.00030958,120]
[380082955,1755531643761,-1782.59,0.00030958,120]
[380082956,1755531643812,-400.0,0.00030958,120]
[380082957,1755531643863,-2021.72,0.00030958,120]
[380082958,1755531643917,-3545.22,0.00030958,120]
[380082959,1755531643969,-1035.2,0.00030958,120]
[380082960,1755531644019,-400.0,0.00030958,120]
[380082961,1755531644072,-444.13,0.00030958,120]
[380082962,1755531644123,-400.0,0.00030958,120]
[380082963,1755531644175,-400.0,0.00030958,120]
[380082964,1755531644225,-400.0,0.00030958,120]
[380082965,1755531644279,-400.0,0.00030958,120]
[380082966,1755531644333,-1939.44,0.00030958,120]
[380082967,1755531644386,-543.94703551,0.00030958,120]
[380082968,1755531644439,-400.0,0.00030958,120]
[380082969,1755531644490,-1598.75,0.00030958,120]
[380082970,1755531644541,-574.59,0.00030958,120]
[380082971,1755531644593,-400.0,0.00030958,120]
[380082972,1755531644644,-1222.0,0.00030958,120]
[380082973,1755531644695,-1665.53,0.00030958,120]
[380082974,1755531644748,-1502.03,0.00030958,120]
[380082975,1755531644798,-4073.2,0.00030958,120]
[380082976,1755531644848,-1118.02,0.00030958,120]
[380082977,1755531644898,-400.0,0.00030958,120]
[380082978,1755531644948,-250.0,0.00030958,120]
[380082979,1755531644999,-3321.87,0.00030958,120]
[380082980,1755531645052,-400.0,0.00030958,120]
[380082981,1755531645103,-400.0,0.00030958,120]
[380082982,1755531645157,-1003.37,0.00030958,120]
[380082983,1755531645209,-400.0,0.00030958,120]
[380082984,1755531645260,-1616.2,0.00030958,120]
[380082985,1755531645320,-1028.03,0.00030958,120]
[380082986,1755531645374,-6964.04,0.00030958,120]
[380082987,1755531645424,-1168.63,0.00030958,120]
[380082988,1755531645476,-754.21,0.00030958,120]
[380082989,1755531645527,-400.0,0.00030958,120]
[380082990,1755531645579,-2936.4,0.00030958,120]
[380082991,1755531645630,-400.55,0.00030958,120]
[380082992,1755531645681,-400.0,0.00030958,120]
[380082993,1755531645733,-2357.35,0.00030958,120]
[380082994,1755531645785,-660.2,0.00030958,120]
[380082995,1755531645835,-400.0,0.00030958,120]
[380082996,1755531645885,-400.0,0.00030958,120]
[380082997,1755531645935,-400.0,0.00030958,120]
[380082998,1755531645984,-2694.67,0.00030958,120]
[380082999,1755531646034,-400.0,0.00030958,120]
[380083000,1755531646086,-4615.71,0.00030958,120]
[380083001,1755531646134,-400.0,0.00030958,120]
[380083002,1755531646184,-400.0,0.00030958,120]
[380083003,1755531646234,-1260.89,0.00030958,120]
[380083004,1755531646288,-400.0,0.00030958,120]
[380083005,1755531646350,-400.0,0.00030958,120]
[380083006,1755531646400,-941.75,0.00030958,120]
[380083007,1755531646450,-1390.18,0.00030958,120]
[380083008,1755531646502,-311.43013612,0.00030958,120]
[380083009,1755531646551,-655.59,0.00030958,120]
[380083010,1755531646599,-400.0,0.00030958,120]
[380083011,1755531646651,-151.23373432,0.00030958,120]
[380083012,1755531646700,-400.0,0.00030958,120]
[380083013,1755531646750,-408.39,0.00030958,120]
[380083014,1755531646800,-3700.28,0.00030958,120]
[380083015,1755531646850,-1163.39,0.00030958,120]
[380083016,1755531646900,-400.0,0.00030958,120]
[380083017,1755531646950,-400.0,0.00030958,120]
[380083018,1755531646998,-300.0,0.00030958,120]
[380083019,1755531647048,-1907.28,0.00030958,120]
[380083020,1755531647097,-725.99,0.00030958,120]
[380083021,1755531647151,-400.0,0.00030958,120]
[380083022,1755531647205,-555.45,0.00030958,120]
[380083023,1755531647253,-400.0,0.00030958,120]
[380083024,1755531647305,-400.0,0.00030958,120]
[380083025,1755531647355,-3911.47,0.00030958,120]
[380083026,1755531647404,-400.0,0.00030958,120]
[380083027,1755531647455,-1930.43,0.00030958,120]
[380083028,1755531647509,-2981.2,0.00030958,120]
[380083029,1755531647560,-827.84,0.00030958,120]
[380083030,1755531647690,-400.0,0.00030958,120]
[380083031,1755531647741,-1480.93,0.00030958,120]
[380083032,1755531647789,-674.65,0.00030958,120]
[380083033,1755531647838,-400.0,0.00030958,120]
[380083034,1755531647885,-470.54,0.00030958,120]
[380083035,1755531647934,-4842.6,0.00030958,120]
[380083036,1755531647981,-1367.0,0.00030958,60]
[380083037,1755531648031,-1562.08,0.00030958,120]
[380083038,1755531648088,-400.0,0.00030958,120]
[380083039,1755531648139,-400.36554664,0.00030958,120]
[380083040,1755531648188,-643.28,0.00030958,120]
[380083041,1755531648238,-3131.67,0.00030958,120]
[380083042,1755531648289,-661.19,0.00030958,120]
[380083043,1755531648340,-400.0,0.00030958,120]
[380083044,1755531648392,-3535.17,0.00030958,120]
[380083045,1755531648444,-742.5,0.00030958,120]
[380083046,1755531648498,-1152.62,0.00030958,120]
[380083047,1755531648556,-400.0,0.00030958,120]
[380083048,1755531648636,-3298.01,0.00030958,120]
[380083049,1755531648728,-400.0,0.00030958,120]
[380083050,1755531648781,-432.33,0.00030958,120]
[380083051,1755531648833,-400.0,0.00030958,120]
[380083052,1755531648886,-3314.99,0.00030958,120]
[380083053,1755531648938,-788.53,0.00030958,120]
[380083054,1755531648987,-400.0,0.00030958,120]
[380083055,1755531649037,-950.22,0.00030958,120]
[380083056,1755531649087,-400.0,0.00030958,120]
[380083057,1755531649138,-400.0,0.00030958,120]
[380083058,1755531649190,-400.0,0.00030958,120]
[380083059,1755531649240,-2202.28,0.00030958,120]
[380083060,1755531649292,-842.02,0.00030958,120]
[380083061,1755531649347,-2384.42,0.00030958,120]
[380083062,1755531649398,-500.0,0.00030958,60]
[380083063,1755531649449,-1390.83,0.00030958,120]
[380083064,1755531649502,-3767.17,0.00030958,120]
[380083065,1755531649551,-400.0,0.00030958,120]
[380083066,1755531649606,-400.0,0.00030958,120]
[380083067,1755531649666,-500.0,0.00030958,60]
[380083068,1755531649718,-400.0,0.00030958,120]
[380083069,1755531649771,-400.0,0.00030958,120]
[380083070,1755531649822,-1973.91,0.00030958,120]
[380083071,1755531649873,-400.0,0.00030958,120]
[380083072,1755531649924,-3484.28,0.00030958,120]